bitfinex-derivatives/quotes_SOLF0:USTF0_20251023
["timestamp","ask_amount","ask_price","bid_price","bid_amount"]
[1761183566806,4.15877858,181.57,181.56,1.95787327]
[1761183567003,4.15877858,181.57,181.54,1.95787327]
[1761183567202,7.05877858,181.56,181.54,1.95787327]
[1761183567400,4.15877858,181.55,181.54,1.95787327]
[1761183570805,4.15877858,181.55,181.52,2.95]
[1761183571005,4.15877858,181.54,181.52,2.95]
[1761183571308,2.9,181.56,181.52,2.95]
[1761183571508,4.15076096,181.55,181.52,2.95]
[1761183571710,4.15076096,181.54,181.52,2.95]
[1761183572010,2.68,181.57,181.52,2.95]
[1761183572208,5.14368485,181.58,181.52,2.95]
[1761183572209,6.83067905,181.56,181.52,2.95]
[1761183572419,4.15067905,181.55,181.52,2.95]
[1761183572708,4.15067905,181.54,181.52,2.95]
[1761183572909,2.68,181.56,181.52,2.95]
[1761183573110,4.14938107,181.55,181.52,2.95]
[1761183573412,2.68,181.56,181.52,2.95]
[1761183573612,6.82829155,181.55,181.52,2.95]
[1761183573911,4.14829155,181.54,181.52,2.95]
[1761183574100,2.68,181.55,181.52,2.95]
[1761183574302,4.14821355,181.54,181.52,2.95]
[1761183574504,2.68,181.55,181.52,2.95]
[1761183575214,4.14711579,181.54,181.52,2.95]
[1761183575414,2.68,181.55,181.52,2.95]
[1761183575708,7.82368485,181.59,181.52,2.95]
[1761183575909,4.14623312,181.58,181.52,2.95]
[1761183576112,4.14623312,181.57,181.52,2.95]
[1761183576317,6.82623312,181.56,181.52,2.95]
[1761183576516,4.14623312,181.55,181.52,2.95]
[1761183576809,2.68,181.56,181.52,2.95]
[1761183577013,4.14556621,181.55,181.52,2.95]
[1761183577216,2.68,181.56,181.52,2.95]
[1761183577403,4.14529795,181.55,181.52,2.95]
[1761183577608,2.68,181.56,181.52,2.95]
[1761183577914,6.82491386,181.55,181.52,2.95]
[1761183578109,2.68,181.55,181.52,2.95]
[1761183583814,5.14368485,181.6,181.52,2.95]
[1761183584018,6.82253158,181.59,181.52,2.95]
[1761183584220,4.14253158,181.58,181.52,2.95]
[1761183584419,2.68,181.59,181.52,2.95]
[1761183584619,4.14237641,181.58,181.52,2.95]
[1761183584922,2.68,181.59,181.52,2.95]
[1761183585614,4.14246358,181.58,181.52,2.95]
[1761183585816,2.68,181.59,181.52,2.95]
[1761183586112,4.14246323,181.58,181.52,2.95]
[1761183586314,2.68,181.59,181.52,2.95]
[1761183586622,4.14287394,181.58,181.52,2.95]
[1761183586821,2.68,181.59,181.52,2.95]
[1761183587022,4.14287394,181.58,181.52,2.95]
[1761183587221,2.68,181.59,181.52,2.95]
[1761183587421,4.14287394,181.58,181.52,2.95]
[1761183587625,2.68,181.59,181.52,2.95]
[1761183587817,4.14301459,181.58,181.52,2.95]
[1761183588018,2.68,181.59,181.52,2.95]
[1761183588220,4.14301459,181.58,181.52,2.95]
[1761183588525,2.68,181.59,181.52,2.95]
[1761183588725,4.14334058,181.58,181.52,2.95]
[1761183589026,2.68,181.59,181.52,2.95]
[1761183589326,4.14317707,181.58,181.52,2.95]
[1761183589527,2.68,181.59,181.52,2.95]
[1761183589722,4.14324992,181.58,181.52,2.95]
[1761183589927,2.68,181.62,181.55,2.69]
[1761183590123,4.1430713,181.61,181.55,2.69]
[1761183590330,4.1430713,181.6,181.55,2.69]
[1761183590628,4.1430713,181.6,181.54,3.05794568]
[1761183590629,7.82368485,181.64,181.58,2.69]
[1761183590822,2.68,181.62,181.58,2.69]
[1761183591126,4.14337255,181.61,181.58,2.69]
[1761183591322,4.14367491,181.6,181.58,2.69]
[1761183591521,2.68,181.62,181.58,2.69]
[1761183591721,4.14367575,181.61,181.58,2.69]
[1761183591922,4.14367575,181.6,181.58,2.69]
[1761183592118,2.68,181.62,181.58,2.69]
[1761183592323,4.14367617,181.61,181.58,2.69]
[1761183592626,4.14367617,181.6,181.58,2.69]
[1761183592827,2.68,181.62,181.58,2.69]
[1761183593026,4.14420597,181.61,181.58,2.69]
[1761183593221,4.14420597,181.6,181.58,2.69]
[1761183593430,4.32949814,181.59,181.58,2.69]
[1761183600033,4.32949814,181.59,181.57,49.01794568]
[1761183600334,7.15267367,181.58,181.57,45.96]
[1761183600832,4.33267367,181.58,181.57,48.88]
[1761183601736,2.82,181.57,181.55,2.92]
[1761183601941,4.33267367,181.56,181.55,2.92]
[1761183602136,4.33267367,181.56,181.55,41.16]
[1761183602440,2.82,181.6,181.55,2.92]
[1761183602641,2.82,181.58,181.55,2.92]
[1761183602939,4.33532667,181.57,181.55,10.86]
[1761183603135,4.33532667,181.56,181.55,13.78]
[1761183603839,4.33532667,181.56,181.55,2.92]
[1761183605836,5.14368485,181.6,181.56,2.92]
[1761183606036,5.14368485,181.62,181.58,2.92]
[1761183606540,5.14368485,181.62,181.59,2.92]
[1761183606740,7.96368485,181.63,181.59,2.92]
[1761183606939,2.82,181.62,181.59,2.92]
[1761183607140,7.96368485,181.62,181.59,2.92]
[1761183607636,5.14368485,181.62,181.59,2.92]
[1761183607841,2.82,181.61,181.59,2.92]
[1761183608343,5.14368485,181.62,181.59,2.92]
[1761183608543,7.96368485,181.64,181.61,2.92]
[1761183610343,2.82,181.64,181.61,2.92]
[1761183611351,5.14368485,181.66,181.61,2.92]
[1761183611551,2.82,181.67,181.61,2.92]
[1761183611552,7.96368485,181.67,181.61,2.92]
[1761183612253,2.82,181.67,181.61,2.92]
[1761183612452,7.96368485,181.67,181.61,2.92]
[1761183613247,2.82,181.67,181.61,2.92]
[1761183613750,5.14368485,181.69,181.64,2.92]
[1761183613948,7.96368485,181.71,181.66,2.92]
[1761183614144,2.82,181.7,181.66,2.92]
[1761183614349,5.14368485,181.72,181.61,2.92]
[1761183614350,2.82,181.68,181.61,2.92]
[1761183614548,2.82,181.67,181.61,48.86]
[1761183614755,2.82,181.67,181.62,2.92]
[1761183614957,2.82,181.67,181.63,2.92]
[1761183615157,5.14368485,181.7,181.63,2.92]
[1761183615456,2.82,181.7,181.63,2.92]
[1761183616253,2.82,181.7,181.65,3.05794568]
[1761183616452,2.82,181.73,181.66,2.92]
[1761183616652,2.82,181.73,181.67,45.92]
[1761183617855,4.28989462,181.72,181.67,45.92]
[1761183618061,2.82,181.7,181.67,48.84]
[1761183618262,2.82,181.7,181.68,2.92]
[1761183618456,4.28838131,181.69,181.68,2.92]
[1761183619362,2.82,181.68,181.62,2.92]
[1761183619663,7.10800016,181.67,181.64,2.92]
[1761183619853,4.28800016,181.66,181.64,2.92]
[1761183620054,2.82,181.67,181.64,2.92]
[1761183620256,4.28818732,181.66,181.64,2.92]
[1761183620458,2.82,181.67,181.64,2.92]
[1761183622067,2.82,181.65,181.61,5.97794568]
[1761183622269,4.28785647,181.64,181.62,2.92]
[1761183622470,4.28811,181.67,181.62,2.92]
[1761183622766,2.82,181.68,181.62,2.92]
[1761183622967,4.28816074,181.67,181.62,2.92]
[1761183623169,2.82,181.68,181.62,2.92]
[1761183623467,4.22920272,181.67,181.62,2.92]
[1761183623671,2.87,181.71,181.62,2.92]
[1761183623859,4.22945136,181.7,181.62,2.92]
[1761183624062,4.22945136,181.69,181.62,2.92]
[1761183624259,2.87,181.71,181.62,2.92]
[1761183624461,4.22942934,181.7,181.62,2.92]
[1761183624660,2.87,181.71,181.62,2.92]
[1761183624866,4.22901012,181.7,181.62,2.92]
[1761183625167,2.87,181.71,181.62,2.92]
[1761183625464,4.22833352,181.7,181.62,2.92]
[1761183625665,2.87,181.71,181.62,4.9543]
[1761183625866,4.22869332,181.7,181.63,2.94]
[1761183626065,2.87,181.71,181.63,2.94]
[1761183626267,4.22877723,181.7,181.63,2.94]
[1761183626469,2.87,181.71,181.63,2.94]
[1761183626662,4.22863044,181.7,181.64,2.94]
[1761183626865,2.87,181.71,181.64,2.94]
[1761183628464,4.22872774,181.7,181.64,2.94]
[1761183628670,2.87,181.71,181.64,2.94]
[1761183629270,4.22804583,181.7,181.64,2.94]
[1761183629471,2.87,181.71,181.64,2.94]
[1761183629672,4.22833219,181.7,181.64,2.94]
[1761183629867,2.87,181.71,181.64,2.94]
[1761183630169,4.22833219,181.7,181.64,2.94]
[1761183630373,2.87,181.71,181.64,2.94]
[1761183630672,4.22807208,181.7,181.65,1.95404277]
[1761183630872,2.87,181.71,181.65,4.77404277]
[1761183631270,2.87,181.71,181.66,2.82]
[1761183632571,2.9,181.69,181.64,1.95404277]
[1761183632778,2.9,181.69,181.65,2.82]
[1761183635378,2.9,181.69,181.65,4.77404277]
[1761183635885,2.9,181.69,181.65,2.82]
[1761183638577,2.9,181.69,181.66,2.82]
[1761183640581,2.9,181.69,181.65,1.95404277]
[1761183640781,2.9,181.69,181.66,2.82]
[1761183641184,2.9,181.69,181.65,1.95404277]
[1761183641382,2.9,181.69,181.63,50.67404277]
[1761183641582,7.13105856,181.68,181.64,2.82]
[1761183641778,2.9,181.68,181.64,2.82]
[1761183643588,2.9,181.68,181.66,1.95404277]
[1761183644383,2.9,181.68,181.64,2.82]
[1761183644585,2.9,181.66,181.63,1.95404277]
[1761183644780,2.9,181.64,181.61,1.95404277]
[1761183645085,2.9,181.64,181.61,4.77404277]
[1761183648692,2.9,181.64,181.63,1.95404277]
[1761183650491,7.14212645,181.64,181.63,1.95404277]
[1761183651384,7.14212645,181.64,181.52,90.54]
[1761183651385,2.9,181.63,181.58,1.95404277]
[1761183651590,2.9,181.61,181.56,1.95404277]
[1761183651779,2.9,181.59,181.56,1.95404277]
[1761183651985,7.14327807,181.58,181.56,1.95404277]
[1761183652179,2.9,181.58,181.56,1.95404277]
[1761183652397,2.9,181.56,181.54,47.83404277]
[1761183652594,2.9,181.56,181.54,45.88]
[1761183653290,7.14704517,181.55,181.54,45.88]
[1761183654189,2.9,181.55,181.54,45.88]
[1761183659401,2.9,181.55,181.54,47.83404277]
[1761183661096,2.9,181.55,181.54,1.95404277]
[1761183662497,2.9,181.55,181.53,1.95404277]
[1761183662704,2.76,181.53,181.52,45.9]
[1761183664006,2.76,181.52,181.49,1.95404277]
[1761183664499,2.76,181.52,181.47,45.9]
[1761183664703,2.76,181.5,181.48,1.95404277]
[1761183667606,2.76,181.5,181.46,1.95404277]
[1761183667903,2.76,181.48,181.44,1.95404277]
[1761183668208,2.76,181.47,181.44,1.95404277]
[1761183668594,2.76,181.47,181.42,7.62]
[1761183668595,4.21710817,181.46,181.42,7.62]
[1761183668801,2.76,181.44,181.39,1.95404277]
[1761183669104,2.76,181.43,181.39,1.95404277]
[1761183670106,2.76,181.42,181.39,1.95404277]
[1761183673599,2.76,181.42,181.36,26.64]
[1761183673600,2.76,181.47,181.41,1.95404277]
[1761183673815,2.76,181.47,181.45,1.95404277]
[1761183674196,2.76,181.46,181.45,1.95404277]
[1761183674400,6.95833086,181.46,181.43,1.95404277]
[1761183674600,2.76,181.44,181.41,1.95404277]
[1761183676012,2.76,181.44,181.43,1.95404277]
[1761183677808,2.76,181.46,181.43,1.95404277]
[1761183678013,2.76,181.46,181.45,1.95404277]
[1761183679410,2.76,181.49,181.45,1.95404277]
[1761183679610,6.95609347,181.48,181.47,1.95404277]
[1761183679814,2.76,181.48,181.47,1.95404277]
[1761183680411,6.95609347,181.48,181.47,1.95404277]
[1761183680622,2.76,181.48,181.47,1.95404277]
[1761183681714,6.95712942,181.48,181.47,1.95404277]
[1761183682317,4.19712942,181.48,181.45,1.95404277]
[1761183682508,4.19963852,181.47,181.45,1.95404277]
[1761183682709,2.76,181.46,181.45,1.95404277]
[1761183683615,6.97453191,181.46,181.4,2.9]
[1761183683824,2.76,181.44,181.43,1.95404277]
[1761183684323,6.97604654,181.44,181.43,1.95404277]
[1761183684709,7.89692522,181.5,181.44,2.9]
[1761183684917,2.76,181.48,181.45,1.95404277]
[1761183685120,4.21585472,181.47,181.43,2.9]
[1761183685316,2.76,181.48,181.47,1.95404277]
[1761183685524,6.97764174,181.48,181.47,1.95404277]
[1761183685719,4.21764174,181.48,181.47,1.95404277]
[1761183685921,4.21764174,181.48,181.47,4.85404277]
[1761183686125,4.21764174,181.48,181.47,1.95404277]
[1761183687021,4.21764174,181.48,181.47,4.85404277]
[1761183690723,4.21764174,181.48,181.47,2.9]
[1761183702435,5.13692522,181.54,181.48,2.76]
[1761183702736,4.25203083,181.53,181.5,2.76]
[1761183702942,5.13692522,181.57,181.5,2.76]
[1761183703143,4.25130144,181.56,181.5,2.76]
[1761183703341,4.25130144,181.55,181.5,2.76]
[1761183703539,4.25130144,181.54,181.5,2.76]
[1761183703738,4.25130144,181.53,181.5,2.76]
[1761183703940,5.13692522,181.57,181.5,2.76]
[1761183704140,4.23958887,181.56,181.5,2.76]
[1761183704342,4.23958887,181.55,181.5,2.76]
[1761183704642,4.23958887,181.54,181.5,2.76]
[1761183704841,8.10692522,181.59,181.5,2.76]
[1761183705040,4.23996195,181.58,181.5,2.76]
[1761183705247,4.23996195,181.57,181.5,2.76]
[1761183705542,4.23996195,181.56,181.5,2.76]
[1761183705741,4.23996195,181.55,181.5,2.76]
[1761183705935,8.10692522,181.59,181.5,2.76]
[1761183706136,4.23890933,181.58,181.5,2.76]
[1761183706336,4.23890933,181.57,181.51,2.76]
[1761183706533,8.10692522,181.62,181.51,2.76]
[1761183706744,4.23817132,181.61,181.51,2.76]
[1761183707045,4.23817132,181.6,181.51,2.76]
[1761183707235,8.10692522,181.62,181.51,2.76]
[1761183707236,4.23817132,181.59,181.52,2.76]
[1761183707437,4.23817132,181.58,181.52,2.76]
[1761183707639,2.97,181.61,181.52,2.76]
[1761183707837,4.23728604,181.6,181.52,2.76]
[1761183708035,4.23728604,181.59,181.52,2.76]
[1761183708235,4.23728604,181.58,181.52,2.76]
[1761183708441,2.97,181.61,181.52,2.76]
[1761183708642,4.23585113,181.6,181.52,2.76]
[1761183708842,4.23585113,181.59,181.52,2.76]
[1761183709042,4.23585113,181.58,181.52,2.76]
[1761183709347,2.97,181.6,181.52,2.76]
[1761183709647,4.23440358,181.59,181.52,2.76]
[1761183709846,4.23440358,181.58,181.52,2.76]
[1761183710048,2.97,181.6,181.52,2.76]
[1761183710348,4.23431928,181.59,181.52,2.76]
[1761183710547,2.97,181.6,181.52,2.76]
[1761183710747,4.23264632,181.59,181.52,2.76]
[1761183710944,2.97,181.6,181.52,2.76]
[1761183711144,7.20264596,181.59,181.52,2.76]
[1761183711346,4.23264596,181.58,181.52,2.76]
[1761183711541,2.97,181.59,181.52,2.76]
[1761183712551,7.20056695,181.58,181.52,2.76]
[1761183712751,2.97,181.58,181.52,2.76]
[1761183719858,4.15601932,181.57,181.48,2.73]
[1761183720057,2.73,181.56,181.48,2.73]
[1761183720261,3.05999096,181.58,181.48,2.73]
[1761183720262,2.73,181.54,181.48,2.73]
[1761183722763,2.73,181.56,181.48,2.73]
[1761183723961,4.16002773,181.58,181.48,2.73]
[1761183724263,2.73,181.59,181.48,2.73]
[1761183724563,4.16059407,181.58,181.48,2.73]
[1761183724863,2.73,181.59,181.48,2.73]
[1761183725063,2.73,181.57,181.5,2.73]
[1761183728570,4.16315114,181.56,181.5,2.73]
[1761183728870,2.73,181.57,181.5,2.73]
[1761183729073,6.89315114,181.56,181.5,2.73]
[1761183729274,6.89358506,181.55,181.5,2.73]
[1761183729569,2.73,181.55,181.5,2.73]
[1761183730470,2.73,181.58,181.5,2.73]
[1761183730668,4.16572697,181.57,181.5,2.73]
[1761183730870,4.16572697,181.56,181.5,2.73]
[1761183731069,2.73,181.58,181.5,2.73]
[1761183731270,4.16564428,181.57,181.5,2.73]
[1761183731574,4.16564428,181.56,181.5,2.73]
[1761183731763,2.73,181.58,181.5,2.73]
[1761183732074,6.89640209,181.57,181.5,2.73]
[1761183732274,4.16640209,181.56,181.5,2.73]
[1761183732475,2.73,181.57,181.5,2.73]
[1761183732671,4.16719609,181.56,181.5,2.73]
[1761183732978,2.73,181.57,181.5,2.73]
[1761183733180,2.73,181.55,181.5,2.73]
[1761183734674,2.73,181.53,181.46,2.73]
[1761183736570,2.73,181.51,181.46,2.73]
[1761183737878,2.73,181.49,181.44,13.2]
[1761183738072,2.73,181.49,181.45,2.73]
[1761183745484,4.1757831,181.48,181.45,2.73]
[1761183745685,2.73,181.49,181.45,2.73]
[1761183745879,6.9357831,181.48,181.45,2.73]
[1761183746080,2.76,181.48,181.45,2.73]
[1761183746581,2.76,181.52,181.45,2.73]
[1761183746884,4.17558439,181.51,181.45,2.73]
[1761183747079,2.76,181.49,181.45,2.73]
[1761183747285,2.76,181.49,181.44,16.14]
[1761183747580,6.9357792,181.48,181.45,2.94]
[1761183747785,2.76,181.48,181.45,2.94]
[1761183751685,4.17332387,181.47,181.45,2.94]
[1761183751989,2.76,181.48,181.45,2.94]
[1761183752188,4.17332387,181.47,181.45,2.94]
[1761183752493,2.76,181.48,181.44,15.93]
[1761183752682,6.98298388,181.47,181.44,13.2]
[1761183753001,2.81,181.47,181.45,2.73]
[1761183755390,1.9591719,181.51,181.45,2.73]
[1761183755580,2.81,181.49,181.45,2.73]
[1761183755780,6.98175804,181.48,181.45,2.73]
[1761183755992,2.81,181.48,181.45,2.73]
[1761183756488,2.81,181.51,181.45,2.73]
[1761183756696,2.81,181.54,181.48,2.73]
[1761183756888,2.81,181.52,181.48,2.73]
[1761183757385,2.81,181.55,181.49,1.9591719]
[1761183757586,4.1712993,181.54,181.5,2.73]
[1761183757786,4.1712993,181.53,181.5,2.73]
[1761183757987,2.81,181.55,181.5,2.73]
[1761183758192,4.17113012,181.54,181.5,2.73]
[1761183758391,4.17113012,181.53,181.5,2.73]
[1761183758590,2.81,181.55,181.5,2.73]
[1761183758792,6.98152977,181.54,181.5,2.73]
[1761183758991,4.17152977,181.53,181.5,2.73]
[1761183759192,2.81,181.54,181.5,2.73]
[1761183759392,4.17178528,181.53,181.5,2.73]
[1761183759592,2.81,181.54,181.5,2.73]
[1761183759795,4.17204181,181.53,181.5,2.73]
[1761183760091,2.81,181.54,181.5,2.73]
[1761183760287,4.17204181,181.53,181.5,2.73]
[1761183760486,2.81,181.54,181.5,2.73]
[1761183760697,6.98263545,181.53,181.5,2.73]
[1761183760897,2.81,181.53,181.5,2.73]
[1761183761595,2.81,181.56,181.5,2.73]
[1761183761889,6.98302501,181.55,181.51,2.73]
[1761183762091,4.17302501,181.54,181.51,2.73]
[1761183762294,2.81,181.55,181.51,2.73]
[1761183762495,4.17326614,181.54,181.51,2.73]
[1761183762689,4.17334898,181.53,181.51,2.73]
[1761183762897,2.81,181.55,181.51,2.73]
[1761183763093,6.98351538,181.54,181.51,2.73]
[1761183763289,4.17351538,181.53,181.49,2.73]
[1761183763493,2.81,181.54,181.49,2.73]
[1761183763693,4.17435723,181.53,181.49,2.73]
[1761183763895,2.81,181.54,181.49,2.73]
[1761183764085,4.17435723,181.53,181.49,2.73]
[1761183764291,4.17435723,181.52,181.49,2.73]
[1761183764500,2.81,181.54,181.49,2.73]
[1761183764697,4.17479437,181.53,181.49,2.73]
[1761183764897,4.17479437,181.52,181.49,2.73]
[1761183765100,2.81,181.54,181.49,2.73]
[1761183765302,4.17479437,181.53,181.49,2.73]
[1761183765503,4.17479437,181.52,181.49,2.73]
[1761183765799,2.81,181.55,181.49,2.73]
[1761183765999,2.81,181.53,181.49,2.73]
[1761183766192,4.1749784,181.52,181.49,2.73]
[1761183766390,2.81,181.53,181.49,2.73]
[1761183766597,4.17499935,181.52,181.49,2.73]
[1761183766901,2.81,181.53,181.49,2.73]
[1761183767097,7.09609712,181.56,181.47,2.73]
[1761183767098,2.81,181.51,181.47,2.73]
[1761183767301,7.09609712,181.56,181.47,2.73]
[1761183767302,4.7691719,181.54,181.47,2.73]
[1761183767506,4.17518097,181.53,181.47,2.73]
[1761183767707,4.17518097,181.52,181.47,2.73]
[1761183767897,2.81,181.53,181.47,2.73]
[1761183768097,6.98518183,181.52,181.47,2.73]
[1761183768298,2.81,181.52,181.47,2.73]
[1761183769302,6.9858417,181.51,181.47,2.73]
[1761183769602,2.81,181.51,181.47,2.73]
[1761183771395,6.98727317,181.5,181.47,2.73]
[1761183771592,2.81,181.5,181.47,2.73]
[1761183771793,2.81,181.5,181.44,17.8891719]
[1761183772405,6.98787677,181.49,181.45,2.73]
[1761183772603,2.81,181.49,181.45,2.73]
[1761183778502,8.03393172,181.53,181.45,2.73]
[1761183778706,8.03393172,181.53,181.46,1.9591719]
[1761183778707,4.17675124,181.52,181.46,1.9591719]
[1761183778909,4.17675124,181.51,181.47,2.8]
[1761183779102,4.17675124,181.5,181.47,2.8]
[1761183779303,2.89,181.53,181.47,2.8]
[1761183779602,4.17745083,181.52,181.47,2.8]
[1761183779808,5.14393172,181.54,181.47,2.8]
[1761183779809,2.89,181.5,181.47,2.8]
[1761183780109,4.16952223,181.49,181.47,2.8]
[1761183780308,2.89,181.5,181.47,2.8]
[1761183780509,4.16955935,181.49,181.47,2.8]
[1761183780803,7.05974148,181.48,181.45,2.8]
[1761183781007,2.89,181.48,181.45,2.8]
[1761183781206,2.89,181.48,181.44,16.0]
[1761183781510,4.17032693,181.47,181.45,2.8]
[1761183781710,2.89,181.48,181.45,2.8]
[1761183781902,4.17035155,181.47,181.45,2.8]
[1761183782209,2.89,181.48,181.45,2.8]
[1761183782410,4.17023488,181.47,181.45,2.8]
[1761183782611,2.89,181.48,181.45,2.8]
[1761183782810,4.17023488,181.47,181.45,2.8]
[1761183783011,2.89,181.48,181.45,2.8]
[1761183783214,7.06023488,181.47,181.44,13.2]
[1761183783415,2.89,181.47,181.44,13.2]
[1761183783608,2.89,181.47,181.44,16.0]
[1761183783919,2.89,181.47,181.45,2.8]
[1761183784107,2.89,181.47,181.45,4.7591719]
[1761183784408,2.89,181.5,181.45,4.7591719]
[1761183784604,7.06000737,181.49,181.46,2.8]
[1761183784804,4.17000737,181.48,181.46,2.8]
[1761183785011,2.89,181.49,181.46,2.8]
[1761183785212,7.05974048,181.48,181.46,2.8]
[1761183785404,2.89,181.51,181.46,2.8]
[1761183785609,4.16954619,181.5,181.48,2.8]
[1761183785808,2.89,181.54,181.48,2.8]
[1761183786013,7.05902833,181.53,181.48,2.8]
[1761183786208,4.16902833,181.52,181.48,2.8]
[1761183786403,7.05902833,181.51,181.48,2.8]
[1761183786608,4.16888354,181.5,181.48,2.8]
[1761183786807,2.89,181.51,181.48,2.8]
[1761183787009,4.16904976,181.5,181.48,2.8]
[1761183787216,2.89,181.51,181.47,1.9591719]
[1761183787416,4.16904208,181.5,181.47,1.9591719]
[1761183787714,2.89,181.51,181.48,2.8]
[1761183787904,5.14393172,181.54,181.48,2.8]
[1761183787905,7.05905865,181.5,181.48,2.8]
[1761183788105,2.89,181.5,181.48,2.8]
[1761183790714,5.14393172,181.54,181.48,2.8]
[1761183790914,2.89,181.52,181.48,2.8]
[1761183791115,7.05909262,181.51,181.49,1.9591719]
[1761183791314,4.16909262,181.5,181.49,1.9591719]
[1761183791812,4.16909262,181.5,181.49,4.7591719]
[1761183792213,5.14393172,181.56,181.5,2.8]
[1761183792419,4.16893855,181.55,181.45,2.8]
[1761183792616,2.89,181.58,181.55,2.8]
[1761183792917,4.16765229,181.57,181.55,2.8]
[1761183793104,2.89,181.58,181.55,2.8]
[1761183793305,4.16166364,181.57,181.54,1.9591719]
[1761183793506,2.89,181.55,181.5,1.9591719]
[1761183793714,2.89,181.53,181.5,1.9591719]
[1761183793922,2.89,181.56,181.5,4.7591719]
[1761183794212,2.89,181.54,181.51,2.8]
[1761183794418,2.89,181.54,181.44,13.2]
[1761183794419,2.89,181.57,181.53,2.8]
[1761183794613,7.05173397,181.56,181.53,2.8]
[1761183794821,2.89,181.56,181.54,1.9591719]
[1761183797523,2.89,181.59,181.54,4.7591719]
[1761183797719,2.89,181.57,181.51,6.9163719]
[1761183798022,2.89,181.57,181.52,2.8]
[1761183800920,4.15863429,181.56,181.52,2.8]
[1761183801112,2.89,181.57,181.52,2.8]
[1761183801314,4.15827647,181.56,181.52,2.8]
[1761183801614,2.89,181.58,181.52,2.8]
[1761183801815,7.04849021,181.57,181.52,2.8]
[1761183802022,2.89,181.57,181.52,2.8]
[1761183802218,2.89,181.62,181.55,1.9591719]
[1761183802414,7.04675535,181.61,181.56,2.8]
[1761183802615,4.15675535,181.6,181.56,2.8]
[1761183802916,4.15675535,181.59,181.56,2.8]
[1761183803116,2.89,181.61,181.56,2.8]
[1761183803318,4.13118264,181.6,181.56,2.8]
[1761183803522,4.13118264,181.59,181.56,2.8]
[1761183803723,2.89,181.61,181.56,2.8]
[1761183803910,6.8609498,181.6,181.56,2.8]
[1761183804221,4.1309498,181.59,181.56,2.8]
[1761183804422,2.73,181.6,181.56,2.8]
[1761183807617,2.73,181.66,181.58,2.93]
[1761183807811,6.8470006,181.7,181.62,2.93]
[1761183807812,6.85486992,181.65,181.62,2.93]
[1761183808009,2.73,181.69,181.62,2.93]
[1761183808214,7.10310362,181.7,181.55,16.54]
[1761183808215,2.73,181.72,181.67,1.9591719]
[1761183808520,4.11973426,181.74,181.71,4.7191719]
[1761183808725,2.7,181.75,181.71,4.7191719]
[1761183808921,2.7,181.75,181.72,2.76]
[1761183813122,2.7,181.8,181.72,2.76]
[1761183817621,2.7,181.87,181.76,2.76]
[1761183819826,2.7,181.87,181.77,3.05144126]
[1761183820028,2.7,181.87,181.78,2.76]
[1761183822028,2.7,181.87,181.79,2.76]